Cogmind - Beta 13 X1 @@@ ROGUE MODE // 2023.11.11 @ 20:14:47 // AFD2019/Pay2Buy Player: ArabianSandBoa Result: Destroyed by S-43 Plague with Heavy Machine Gun Performance ------------- Evolutions (9) 4500 Regions Visited (23) 4600 Robots Destroyed (297) 1485 Value Destroyed (13053) 13053 Prototype IDs (36) 720 Alien Tech Used (0) 0 Bonus (8821) 8821 TOTAL SCORE: 33179 Bonus ------- Triggered High Security 1500 High Alert Combat Kills 3687 Met Data Miner 300 Met Warlord at Base 500 MAIN.C Attacked Warlord 500 Warlord Defense Kills 334 Met Warlord at Research 2000 Cogmind --------- Core Integrity 0/1600 Matter 288/300 Energy 100/100 System Corruption 2% Temperature Cool (0) Movement Core (50) Location -1/Access Parts ------- > --- POWER (3) -------- (None) > --- PROPULSION (6) --- (None) > --- UTILITY (12) ----- (None) > --- WEAPON (4) ------- (None) > --- INVENTORY (10) --- Improved Kinecellerator Launcher Loader Experimental Actuator Array Long-range Tractor Beam Peak State ------------ > --- POWER ------------ Micro Antimatter Reactor Compact Particle Reactor > --- PROPULSION ------- Improved VTOL Module Biomechanical Wings Impulse Thruster Cooled Field Propulsion Drive Cooled Field Propulsion Drive Diametric Drive > --- UTILITY ---------- Advanced Power Amplifier Experimental Cooling System Advanced Weight Redist. System Long-range Sensor Array Long-range Terrain Scanner Advanced Terrain Scan Processor Nanoactuators Improved Phase Shifter Improved Propulsion Shielding > --- WEAPON ----------- Compact HERF Cannon Nanosword > --- INVENTORY -------- Weapon Mount Improved Kinecellerator Launcher Loader Experimental Actuator Array Point Defense Array Long-range Tractor Beam Fusion Bomb Launcher Flail [Rating: 133] Favorites ----------- Power Light Nuclear Core Engine Heavy Deuterium Engine Power Core Light Nuclear Core Reactor Micro Antimatter Reactor Propulsion Improved VTOL Module Treads Spiked Treads Hover Unit Cooled Linear Gravjet Flight Unit Improved VTOL Module Utility Cooling System Device Cooling System Processor Armor Integrity Analyzer Protection Improved Propulsion Shielding Weapon Riot Gun Energy Gun Riot Gun Energy Cannon Compact HERF Cannon Ballistic Gun Makeshift Shrapnel Gun Ballistic Cannon Flak Cannon Launcher Fusion Bomb Launcher Impact Weapon Flail Slashing Weapon Nanosword Build | -11 -10 -9 -8 -7 -6 -6 -6 -6 -6 -6 -5 -5 -5 -5 -5 -4 -4 -3 -3 -2 -2 -2 -1 ------- Run | Jun Mat Mat Mat Fac Fac Was Fac Low Low Dat Pro Fac Upp Upp War Pro Fac Res Tes Res Qua Sec Acc Slots Evolved 18 | . . 2 2 2 2 . . . . . . 2 . . . . 2 2 . 2 . . 2 Power 2 | . . . . . . . . . . . . . . . . . . 1 . 1 . . . Propulsion 4 | . . 1 . 1 . . . . . . . 1 . . . . 1 . . . . . . Utility 10 | . . 1 2 1 . . . . . . . 1 . . . . 1 1 . 1 . . 2 Weapon 2 | . . . . . 2 . . . . . . . . . . . . . . . . . . Parts Attached 143 | . 9 35 12 9 10 8 5 2 . . . 6 4 5 2 . 10 7 1 1 5 3 9 Power 12 | . . 1 2 1 1 1 . 1 . . . . 1 . . . 1 1 . . 2 . . Engine 4 | . . . 1 1 1 1 . . . . . . . . . . . . . . . . . Core 4 | . . 1 1 . . . . 1 . . . . 1 . . . . . . . . . . Reactor 4 | . . . . . . . . . . . . . . . . . 1 1 . . 2 . . Propulsion 31 | . 2 17 1 1 1 2 . . . . . . . . . . 2 . 1 . 2 2 . Treads 7 | . . 7 . . . . . . . . . . . . . . . . . . . . . Leg . | . . . . . . . . . . . . . . . . . . . . . . . . Wheel . | . . . . . . . . . . . . . . . . . . . . . . . . Hover 1 | . . . . . . . . . . . . . . . . . . . . . . 1 . Flight 23 | . 2 10 1 1 1 2 . . . . . . . . . . 2 . 1 . 2 1 . Utility 39 | . . 6 2 3 6 3 3 1 . . . 6 1 1 1 . 1 3 . 1 . . 1 Device 28 | . . 3 1 1 5 3 1 . . . . 5 1 1 1 . 1 3 . 1 . . 1 Storage . | . . . . . . . . . . . . . . . . . . . . . . . . Processor 6 | . . . 1 2 1 . . 1 . . . 1 . . . . . . . . . . . Hackware . | . . . . . . . . . . . . . . . . . . . . . . . . Protection 5 | . . 3 . . . . 2 . . . . . . . . . . . . . . . . Artifact . | . . . . . . . . . . . . . . . . . . . . . . . . Weapon 61 | . 7 11 7 4 2 2 2 . . . . . 2 4 1 . 6 3 . . 1 1 8 Energy Gun 10 | . 3 6 . . . . . . . . . . . . . . 1 . . . . . . Energy Cannon . | . . . . . . . . . . . . . . . . . . . . . . . . Ballistic Gun 10 | . . . 3 3 1 2 1 . . . . . . . . . . . . . . . . Ballistic Cannon . | . . . . . . . . . . . . . . . . . . . . . . . . Launcher 13 | . . . . . . . . . . . . . 1 2 1 . 3 2 . . . . 4 Special Weapon . | . . . . . . . . . . . . . . . . . . . . . . . . Impact Weapon 25 | . 4 5 4 1 1 . 1 . . . . . 1 2 . . 2 . . . . . 4 Slashing Weapon 3 | . . . . . . . . . . . . . . . . . . 1 . . 1 1 . Piercing Weapon . | . . . . . . . . . . . . . . . . . . . . . . . . Special Melee Weapon . | . . . . . . . . . . . . . . . . . . . . . . . . Unidentified Prototypes . | . . . . . . . . . . . . . . . . . . . . . . . . Parts Lost 75 | . 2 12 5 3 1 3 4 2 . . . 1 2 . 1 1 4 2 6 . 6 11 9 Power 13 | . 1 2 1 . . 1 1 1 . . . . 1 . . 1 . 1 . . . 2 1 Propulsion 18 | . . 3 1 . . 1 . . . . . . 1 . . . 1 . 3 . 2 4 2 Utility 25 | . 1 3 1 2 . . 2 1 . . . . . . . . . 1 3 . 4 3 4 Weapon 19 | . . 4 2 1 1 1 1 . . . . 1 . . 1 . 3 . . . . 2 2 Highest Loss Streak 8 | . 2 7 3 2 1 3 3 2 . . . 1 2 . 1 1 2 1 6 . 5 7 8 To Critical Strikes 1 | . . . . . . . . . . . . . . . . . . . . . . 1 . Average Slot Usage (%) 83 | . 87 86 90 99 98 82 82 75 80 80 80 83 87 88 87 88 78 81 88 69 66 47 22 Engine 3 | . 11 . 3 7 6 5 6 2 . . . . . . . . . . . . . . . Core 3 | . . 9 5 . . . . 3 6 6 6 5 5 5 5 2 . . . . . . . Reactor 1 | . . . . . . . . . . . . . . . . 3 5 9 9 8 5 3 . Treads 9 | . 15 27 . . . . . . . . . . . . . . . . . . . . . Flight 17 | . 12 3 26 29 26 26 26 26 26 26 26 26 28 29 29 29 29 28 27 24 20 14 3 Device 14 | . 13 11 20 16 13 20 9 6 6 6 6 5 9 16 17 17 23 31 30 22 20 10 6 Processor 9 | . . . 1 19 20 20 19 26 33 33 33 31 24 23 23 23 12 4 5 4 8 8 6 Protection 6 | . 6 12 15 7 6 . 9 2 . . . 2 5 . . . . 2 4 . 4 3 . Energy Gun 7 | . 17 17 . . . . . . . . . 3 1 . . 5 1 . . . . . . Ballistic Gun 2 | . . . 9 14 17 6 . . . . . . . . . . . . . . . . . Impact Weapon 3 | . 9 . 5 . 6 1 6 6 6 6 6 5 6 10 8 5 3 . . . . 1 2 Naked Turns 47 | . . . . . . . . . . . . . . . . . . . . . . . 47 Heaviest Build 48 | 2 17 34 27 21 20 20 28 14 9 9 9 20 28 27 27 23 42 48 42 39 43 24 16 Greatest Support 62 | 10 40 62 24 29 29 20 29 29 20 20 20 26 28 28 28 28 45 48 54 47 47 35 14 Greatest Overweight (x) 3 | . 1 1 1 . . . 1 . . . . . 1 . . . . 1 . . 1 . 3 Average Overweight (x) . | . . . . . . . . . . . . . . . . . . . . . . . . Largest Inventory Capacity 10 | 10 10 10 10 10 10 10 10 10 10 10 10 10 10 10 10 10 10 10 10 10 10 10 10 Average Capacity 10 | 10 10 10 10 10 10 10 10 10 10 10 10 10 10 10 10 10 10 10 10 10 10 10 10 Most Carried 10 | 1 8 10 10 10 10 10 10 10 8 8 8 10 10 10 10 10 10 10 10 10 10 9 8 Average Carried 8 | 1 2 9 7 9 7 8 7 9 8 8 8 8 9 10 9 10 9 9 9 9 8 7 7 Final Capacity 10 | 10 10 10 10 10 10 10 10 10 10 10 10 10 10 10 10 10 10 10 10 10 10 10 10 Final Carried 10 | 1 8 7 10 9 10 8 10 8 8 8 8 9 10 10 10 10 10 10 9 9 8 7 5 Class Distribution -------------------- 44% | Sprinter 25% | Mutant 19% | Derelict-Mutant 9% | Scout Dominant Class ---------------- Mutant | -10/Materials Derelict-Mutant | -9/Materials Sprinter | -8/Materials Sprinter | -7/Factory Sprinter | -6/Factory Sprinter | -6/Waste Sprinter | -6/Factory Sprinter | -6/Lower Caves Sprinter | -6/Lower Caves Sprinter | -6/Data Miner Sprinter | -5/Proximity Caves Sprinter | -5/Factory Commander-Sprinter | -5/Upper Caves Sprinter | -5/Upper Caves Sprinter | -5/Warlord Sprinter | -4/Proximity Caves Sprinter | -4/Factory Sprinter | -3/Research Scout | -3/Testing Scout | -2/Research Scout | -2/Quarantine Scout | -2/Section 7 Mutant | -1/Access Resources | -11 -10 -9 -8 -7 -6 -6 -6 -6 -6 -6 -5 -5 -5 -5 -5 -4 -4 -3 -3 -2 -2 -2 -1 ----------- Run | Jun Mat Mat Mat Fac Fac Was Fac Low Low Dat Pro Fac Upp Upp War Pro Fac Res Tes Res Qua Sec Acc Matter Collected 4603 | . 267 579 675 745 204 446 90 10 1 . . 46 203 147 105 . 676 . 28 125 85 74 97 Remotely 1921 | . . 181 583 358 . 138 . . . . . . . . 105 . 556 . . . . . . Salvage Created 9286 | . 428 2794 643 850 255 915 746 . . . . 76 313 94 60 69 1366 143 28 125 12 256 113 Parts . | . . . . . . . . . . . . . . . . . . . . . . . . Haulers Intercepted 9 | . . 3 2 . . . 1 . . . . . . . . . 3 . . . . . . Recyclers Shooed 2 | . . 1 . . . . . . . . . . . . . . 1 . . . . . . Parts Field Recycled . | . . . . . . . . . . . . . . . . . . . . . . . . Retrieved Matter . | . . . . . . . . . . . . . . . . . . . . . . . . Parts Self-Destructed . | . . . . . . . . . . . . . . . . . . . . . . . . Prevented . | . . . . . . . . . . . . . . . . . . . . . . . . Kills | -11 -10 -9 -8 -7 -6 -6 -6 -6 -6 -6 -5 -5 -5 -5 -5 -4 -4 -3 -3 -2 -2 -2 -1 ------- Run | Jun Mat Mat Mat Fac Fac Was Fac Low Low Dat Pro Fac Upp Upp War Pro Fac Res Tes Res Qua Sec Acc Combat Hostiles Destroyed 177 | . 14 55 21 16 4 4 3 . . . . 1 16 3 4 1 26 6 . . . 3 . Melee 8 | . 2 . . . . . . . . . . 1 1 1 . . . . . . . 3 . Guns 71 | . 11 30 7 16 3 4 . . . . . . . . . . . . . . . . . Cannons 14 | . . 14 . . . . . . . . . . . . . . . . . . . . . AOE 78 | . . 9 14 . . . 2 . . . . . 15 2 4 . 26 6 . . . . . Classes Destroyed 20 | . 7 7 1 1 . 1 . . . . . 1 1 . . 1 . . . . . . . Worker 31 | . 3 10 4 2 2 . 3 . . . . . . . . . 5 . . . 2 . . Builder 27 | . 3 12 . 3 . . . . . . . . . . . . 8 . . . 1 . . Tunneler 8 | . 1 . 3 . . . 1 . . . . 1 . . . . 1 . . . . . 1 Hauler 9 | . . 3 2 . . . 1 . . . . . . . . . 3 . . . . . . Recycler 11 | . . 2 1 2 . . 3 . . . . . . . . . 1 . . 1 . . 1 Mechanic 4 | . . 2 . 2 . . . . . . . . . . . . . . . . . . . Operator 8 | . 3 . 1 . . . 1 . . . . 2 . . . . . . 1 . . . . Drone 1 | . . . . . . . . . . . . . . . . 1 . . . . . . . Watcher 22 | . 3 5 4 . 3 . 1 . . . . 1 . . . . 2 . . . . 3 . Swarmer 44 | . 3 12 9 1 . . . . . . . . 9 3 2 . . 5 . . . . . Cutter 4 | . . . . . . . . . . . . 1 . . . . . . . . . 3 . Grunt 82 | . 11 22 7 10 4 . 2 . . . . . 4 . 1 . 21 . . . . . . Brawler 8 | . . 5 1 2 . . . . . . . . . . . . . . . . . . . Duelist 5 | . . 3 . 2 . . . . . . . . . . . . . . . . . . . Protector 5 | . . 3 . . . . . . . . . . . . 1 . 1 . . . . . . Sentry 14 | . . 10 3 . . . 1 . . . . . . . . . . . . . . . . Hunter 6 | . . . 1 . . . . . . . . . 2 . . . 2 1 . . . . . Programmer 3 | . . . . 1 . . . . . . . . . . . . 2 . . . . . . Compactor 4 | . . . . . . 4 . . . . . . . . . . . . . . . . . Packrat 1 | . . . . . . . . . . . . . . 1 . . . . . . . . . Mutant 1 | . . . . . . . . . . . . . 1 . . . . . . . . . . Best Kill Streak 20 | . 3 10 18 8 4 2 5 . . . . 2 10 3 2 1 20 6 1 1 3 4 2 Combat Bots Only 16 | . 3 8 14 8 4 2 2 . . . . 1 10 3 2 1 16 6 . . . 3 . Max Kills in Single Turn 4 | . 1 3 4 2 2 1 2 . . . . 1 4 3 2 1 3 3 1 1 2 1 1 Gunslinging 1 | . . 1 . 1 . . . . . . . . . . . . . . . . . . . Exploded 4 | . . 2 3 . . . 2 . . . . . 4 2 2 . 2 3 . . . . . Melee 1 | . 1 . . . . . . . . . . 1 1 1 . . . . . . . 1 . Uniques/NPCs Destroyed . | . . . . . . . . . . . . . . . . . . . . . . . . Combat | -11 -10 -9 -8 -7 -6 -6 -6 -6 -6 -6 -5 -5 -5 -5 -5 -4 -4 -3 -3 -2 -2 -2 -1 -------- Run | Jun Mat Mat Mat Fac Fac Was Fac Low Low Dat Pro Fac Upp Upp War Pro Fac Res Tes Res Qua Sec Acc Damage Taken 11309 | . 546 2315 770 550 142 58 545 79 40 . 57 306 333 15 109 40 684 458 307 51 621 1269 2014 Core 4062 | . 178 275 176 124 18 19 159 22 25 . 38 156 76 . 20 8 201 169 36 47 213 484 1618 Absorbed by Shields . | . . . . . . . . . . . . . . . . . . . . . . . . Redirected to Shielding 625 | . . . 75 53 29 . 43 12 . . . 10 72 . . . . 45 58 . 153 75 . Regen/Repaired (Parts) 99 | . . . . . . . . . . . . . . . 99 . . . . . . . . Core Remaining (%) 66 | 100 28 31 68 82 . . . . . . 66 . . . . 74 82 . 84 . . 48 . Volleys Fired 618 | . 75 220 79 48 15 46 21 . . . . 23 12 2 5 . 48 6 3 9 3 . 3 Largest 3 | . 2 2 2 2 3 2 1 . . . . 1 1 1 1 . 1 1 1 1 1 . 1 Hottest 130 | . 130 107 48 48 72 48 81 . . . . 65 49 49 49 . 60 52 94 94 94 . 52 Shots Fired 890 | . 108 361 99 91 45 52 21 . . . . 23 12 2 5 . 47 6 3 9 3 . 3 Gun 708 | . 108 296 75 91 45 52 8 . . . . 23 . . . . 10 . . . . . . Cannon 96 | . . 65 3 . . . 13 . . . . . . . . . . . 3 9 3 . . Launcher 86 | . . . 21 . . . . . . . . . 12 2 5 . 37 6 . . . . 3 Special . | . . . . . . . . . . . . . . . . . . . . . . . . Kinetic 328 | . . 54 78 91 45 52 8 . . . . . . . . . . . . . . . . Thermal 108 | . 108 . . . . . . . . . . . . . . . . . . . . . . Explosive 86 | . . . 21 . . . . . . . . . 12 2 5 . 37 6 . . . . 3 Electromagnetic 368 | . . 307 . . . . 13 . . . . 23 . . . . 10 . 3 9 3 . . Robot Hit Streak 13 | . 11 12 6 13 8 11 1 . . . . . 2 . . . 10 1 . . . . . Robot Miss Streak 8 | . 7 5 8 7 7 3 2 . . . . . 3 . . . 3 1 . . . . . Penetration Max . | . . . . . . . . . . . . . . . . . . . . . . . . Secondary Targets 11 | . 2 2 . 5 2 . . . . . . . . . . . . . . . . . . Max Gunslinging Chain 1 | . 1 1 . 1 1 . . . . . . . . . . . . . . . . . . Shots Hit Robots 595 | . 74 227 60 82 24 52 13 . . . . 6 8 2 . 2 26 2 2 1 . 10 4 Core Hits 600 | . 77 174 62 81 25 29 13 . . . . 5 25 4 6 . 78 8 1 1 4 6 1 Critical Kills 1 | . . . . 1 . . . . . . . . . . . . . . . . . . . Critical Parts Destroyed 9 | . . . 1 1 1 . 1 . . . . . . 1 . . 4 . . . . . . Critical Strikes 10 | . . . 1 2 1 . 1 . . . . . . 1 . . 4 . . . . . . Smash 10 | . . . 1 2 1 . 1 . . . . . . 1 . . 4 . . . . . . Melee Attacks 477 | . 47 18 28 12 11 . 38 2 . . . 40 6 2 10 4 48 45 47 37 17 44 21 Impact 297 | . 47 18 28 12 11 . 38 2 . . . 40 6 2 10 4 48 7 . . . 3 21 Slashing 180 | . . . . . . . . . . . . . . . . . . 38 47 37 17 41 . Piercing . | . . . . . . . . . . . . . . . . . . . . . . . . Sneak Attacks 23 | . 5 . 3 3 1 . 5 . . . . . . . . . 2 . . 1 . 1 2 Combat Hostiles . | . . . . . . . . . . . . . . . . . . . . . . . . Follow-up Attacks . | . . . . . . . . . . . . . . . . . . . . . . . . Damage Inflicted 29527 | . 1723 5416 3223 2066 768 1520 1774 . . . . 590 2007 442 309 133 7221 876 161 140 179 748 231 Guns 8416 | . 795 3080 741 1800 480 1520 . . . . . . . . . . . . . . . . . Cannons 1163 | . . 1074 51 . . . 38 . . . . . . . . . . . . . . . . Explosions 14990 | . 317 1262 2048 . 75 . 810 . . . . 262 1874 317 309 . 6661 876 . . 179 . . Melee 4952 | . 611 . 383 266 213 . 926 . . . . 328 133 125 . 133 560 . 161 140 . 748 225 Ramming 6 | . . . . . . . . . . . . . . . . . . . . . . . 6 Kinetic 5467 | . . 875 792 1800 480 1520 . . . . . . . . . . . . . . . . . Thermal 3485 | . 820 1231 107 . 75 . 108 . . . . 112 . . . . 1032 . . . . . . Explosive 12079 | . 292 . 1864 . . . 671 . . . . 68 1874 317 309 . 5629 876 . . 179 . . Electromagnetic 3538 | . . 3310 77 . . . 69 . . . . 82 . . . . . . . . . . . Impact 3903 | . 611 . 383 266 213 . 926 . . . . 328 133 125 . 133 560 . . . . . 225 Slashing 1049 | . . . . . . . . . . . . . . . . . . . 161 140 . 748 . Piercing . | . . . . . . . . . . . . . . . . . . . . . . . . Highest Corruption 6 | . . 3 . . . . . . . . . . . . . . 1 . 1 . 6 6 2 Average Corruption 3 | . . 2 . . . . . . . . . . . . . . 1 . 1 . 5 6 1 Corruption Purged . | . . . . . . . . . . . . . . . . . . . . . . . . Corruption Blocked 35 | . . . . . . . . . . . . . . . . . . . . . 35 . . Effects 49 | . . 29 . . . . . . . . . . . . . . 2 . 1 . 4 12 1 Message Errors 9 | . . 7 . . . . . . . . . . . . . . . . . . 2 . . Matter Fused 13 | . . 7 . . . . . . . . . . . . . . . . 1 . 1 3 1 Heat Flow Errors 7 | . . 5 . . . . . . . . . . . . . . 1 . . . . 1 . Energy Discharges 3 | . . 2 . . . . . . . . . . . . . . . . . . . 1 . Parts Rejected 2 | . . . . . . . . . . . . . . . . . . . . . 1 1 . Parts Fused 1 | . . . . . . . . . . . . . . . . . . . . . . 1 . Data Loss (minor) 5 | . . 4 . . . . . . . . . . . . . . . . . . . 1 . Data Loss (major) 4 | . . 2 . . . . . . . . . . . . . . . . . . . 2 . Misfires 2 | . . 2 . . . . . . . . . . . . . . . . . . . . . Alerts 2 | . . . . . . . . . . . . . . . . . . . . . . 2 . Weapon Failures 1 | . . . . . . . . . . . . . . . . . 1 . . . . . . Overload Shots . | . . . . . . . . . . . . . . . . . . . . . . . . Overflow Damage 2871 | . 272 48 430 106 159 . 438 . . . . 121 69 140 . 101 661 39 75 . . 165 47 Projectiles 1 | . . 1 . . . . . . . . . . . . . . . . . . . . . Explosions 1019 | . 64 47 237 . . . 78 . . . . . 69 65 . . 420 39 . . . . . Melee 1851 | . 208 . 193 106 159 . 360 . . . . 121 . 75 . 101 241 . 75 . . 165 47 Knockbacks 40 | . 2 24 4 1 2 . 4 . . . . 1 . . . . 1 . . . . . 1 Impact 13 | . 2 . 1 1 2 . 4 . . . . 1 . . . . 1 . . . . . 1 Kinetic 26 | . . 24 2 . . . . . . . . . . . . . . . . . . . . Secondary 1 | . . . 1 . . . . . . . . . . . . . . . . . . . . Self-Inflicted Damage 852 | . 54 324 111 22 . . 55 . . . . 57 90 . . . 37 49 . 51 . . 2 Shots 25 | . 1 9 4 1 . . 2 . . . . 1 2 . . . 2 1 . 2 . . . Rammed 2 | . . . . . . . . . . . . . . . . . . . . . . . 2 Targets Rammed 2 | . . . . . . . . . . . . . . . . . . . . . . . 2 Kicked . | . . . . . . . . . . . . . . . . . . . . . . . . Crushed . | . . . . . . . . . . . . . . . . . . . . . . . . Highest Temperature 483 | . 462 283 2 10 45 4 139 . . . . 26 . . 4 . 483 . 328 77 . 166 . Average Temperature 60 | . 92 54 2 2 18 4 45 . . . . 11 . . 4 . 96 . 153 27 . 93 . Received Heat Transfer 2119 | . 231 840 261 216 36 . 183 18 . . 27 9 . . . . 124 18 21 . . 99 36 Effects 2 | . 1 . . . . . . . . . . . . . . . 1 . . . . . . Shutdowns 1 | . . . . . . . . . . . . . . . . . 1 . . . . . . Short Circuit 1 | . 1 . . . . . . . . . . . . . . . . . . . . . . Siege Activations . | . . . . . . . . . . . . . . . . . . . . . . . . Robots Corrupted 2 | . . 2 . . . . . . . . . . . . . . . . . . . . . Combat Hostiles 2 | . . 2 . . . . . . . . . . . . . . . . . . . . . Parts Fried . | . . . . . . . . . . . . . . . . . . . . . . . . Impact Corruptions 60 | . 8 . 3 4 4 . 16 . . . . 6 . 2 . 4 10 . . . . . 3 Robots Melted . | . . . . . . . . . . . . . . . . . . . . . . . . Combat Hostiles . | . . . . . . . . . . . . . . . . . . . . . . . . Parts Melted . | . . . . . . . . . . . . . . . . . . . . . . . . Heat Transferred 3400 | . 1045 1355 50 . 100 . 100 . . . . 50 . . . . 700 . . . . . . Parts Sabotaged 2 | . . . . . . . . . . . . . . . . . 2 . . . . . . Parts Stolen . | . . . . . . . . . . . . . . . . . . . . . . . . Parts Stripped . | . . . . . . . . . . . . . . . . . . . . . . . . Power Chain Reactions 16 | . . 16 . . . . . . . . . . . . . . . . . . . . . Missiles Intercepted . | . . . . . . . . . . . . . . . . . . . . . . . . Alert | -11 -10 -9 -8 -7 -6 -6 -6 -6 -6 -6 -5 -5 -5 -5 -5 -4 -4 -3 -3 -2 -2 -2 -1 ------- Run | Jun Mat Mat Mat Fac Fac Was Fac Low Low Dat Pro Fac Upp Upp War Pro Fac Res Tes Res Qua Sec Acc Peak Influence 2391 | . 579 1557 1698 1357 1066 378 1417 . . . . 1870 . . . . 2391 2262 1934 1820 1340 1604 1429 Initial 1280 | . . 208 657 1100 642 378 250 . . . . . . . . . 152 1254 1280 1071 1100 753 827 Average 942 | . 232 805 1417 1223 846 341 787 . . . . 1101 . . . . 1337 1740 1615 1465 1279 1283 1224 Maximum Alert Level 5 | . 2 4 5 4 3 1 4 . . . . 5 . . . . 5 5 5 5 4 5 4 Low Security (%) 8 | 100 44 . . . . . . . . . . 4 . . . . 4 . . . . . . Level 1 12 | . 38 5 . . . 100 30 . . . . 11 . . . . 13 . . . . . . Level 2 17 | . 16 44 5 . 18 . 12 . . . . 7 . . . . 7 . . . . . . Level 3 14 | . . 28 4 . 81 . 27 . . . . 25 . . . . 4 . . 1 . 28 10 Level 4 36 | . . 21 61 100 . . 29 . . . . 25 . . . . 25 34 31 59 100 69 89 Level 5 8 | . . . 23 . . . . . . . . . . . . . 44 65 68 20 . 1 . High Security 1 | . . . 4 . . . . . . . . 25 . . . . . . . 17 . . . Max Security . | . . . . . . . . . . . . . . . . . . . . . . . . Sterilizations 1 | . . 1 . . . . . . . . . . . . . . . . . . . . . Squads Dispatched 51 | . 3 8 1 5 . . 2 . . . . 3 . . . . 10 7 3 . 3 3 3 Investigation 7 | . 2 2 1 . . . . . . . . 1 . . . . . 1 . . . . . Extermination 1 | . . . . 1 . . . . . . . . . . . . . . . . . . . Reinforcement 15 | . 1 1 . 1 . . 2 . . . . 1 . . . . 2 . 1 . 3 2 1 Assault 26 | . . 5 . 3 . . . . . . . 1 . . . . 8 4 2 . . 1 2 Garrison 2 | . . . . . . . . . . . . . . . . . . 2 . . . . . Intercept . | . . . . . . . . . . . . . . . . . . . . . . . . Searches Triggered . | . . . . . . . . . . . . . . . . . . . . . . . . Data Miner Redirects 9 | . . . . . . . . . . . . 1 . . . . 5 2 . . . 1 . Construction Impeded 4 | . . 1 . 1 . . . . . . . . . . . . 2 . . . . . . Haulers Reinforced 1 | . . . . . . . 1 . . . . . . . . . . . . . . . . Active Scanning Responses . | . . . . . . . . . . . . . . . . . . . . . . . . Cargo Convoy Interrupts . | . . . . . . . . . . . . . . . . . . . . . . . . Stealth | -11 -10 -9 -8 -7 -6 -6 -6 -6 -6 -6 -5 -5 -5 -5 -5 -4 -4 -3 -3 -2 -2 -2 -1 --------- Run | Jun Mat Mat Mat Fac Fac Was Fac Low Low Dat Pro Fac Upp Upp War Pro Fac Res Tes Res Qua Sec Acc Distress Signals 9 | . . 2 . . . . 1 . . . . . . . . . . 1 . 1 . 2 2 Communications Jammed . | . . . . . . . . . . . . . . . . . . . . . . . . Distress Signals . | . . . . . . . . . . . . . . . . . . . . . . . . Times Spotted 398 | . 28 80 40 23 13 6 18 10 3 . 2 12 10 2 4 4 31 20 15 6 6 41 24 Peak Tracking Total 19 | . 6 12 10 8 4 3 8 9 3 . 2 5 5 5 3 5 9 10 12 5 6 19 15 Tactical Retreats 47 | . 4 8 4 . 1 . 6 3 1 . . 3 . . 1 . 1 3 . . 1 7 4 Traps | -11 -10 -9 -8 -7 -6 -6 -6 -6 -6 -6 -5 -5 -5 -5 -5 -4 -4 -3 -3 -2 -2 -2 -1 ------- Run | Jun Mat Mat Mat Fac Fac Was Fac Low Low Dat Pro Fac Upp Upp War Pro Fac Res Tes Res Qua Sec Acc Traps Triggered 11 | . 1 1 2 2 1 . . . . . . 1 . . . . . 1 . . 2 . . Indirectly . | . . . . . . . . . . . . . . . . . . . . . . . . Trap Hack Attempts . | . . . . . . . . . . . . . . . . . . . . . . . . Triggered . | . . . . . . . . . . . . . . . . . . . . . . . . Disarmed . | . . . . . . . . . . . . . . . . . . . . . . . . Reprogrammed . | . . . . . . . . . . . . . . . . . . . . . . . . Reused . | . . . . . . . . . . . . . . . . . . . . . . . . Traps Extracted . | . . . . . . . . . . . . . . . . . . . . . . . . Installed . | . . . . . . . . . . . . . . . . . . . . . . . . Triggered 12 | . . . . . . . . 1 . . 1 . . 1 7 2 . . . . . . . Machines | -11 -10 -9 -8 -7 -6 -6 -6 -6 -6 -6 -5 -5 -5 -5 -5 -4 -4 -3 -3 -2 -2 -2 -1 ---------- Run | Jun Mat Mat Mat Fac Fac Was Fac Low Low Dat Pro Fac Upp Upp War Pro Fac Res Tes Res Qua Sec Acc Machines Disabled 399 | . 36 39 34 11 11 . 41 . . . . 60 3 . 2 . 52 20 27 27 9 20 7 Max in Single Turn 8 | . 2 4 2 4 4 . 5 . . . . 6 1 . 2 . 8 1 1 1 1 1 2 Garrison Access 8 | . . . . . . . . . . . . 1 . . . . 2 1 1 1 . 1 1 Machines Repaired . | . . . . . . . . . . . . . . . . . . . . . . . . Machines Sabotaged . | . . . . . . . . . . . . . . . . . . . . . . . . Overloaded Fab Kills . | . . . . . . . . . . . . . . . . . . . . . . . . Hacking | -11 -10 -9 -8 -7 -6 -6 -6 -6 -6 -6 -5 -5 -5 -5 -5 -4 -4 -3 -3 -2 -2 -2 -1 --------- Run | Jun Mat Mat Mat Fac Fac Was Fac Low Low Dat Pro Fac Upp Upp War Pro Fac Res Tes Res Qua Sec Acc Machines Accessed 37 | . 7 4 3 . . . . 1 . 4 . 1 2 1 10 1 . . . . 1 2 . Terminals 19 | . 7 4 3 . . . . . . . . 1 . . . 1 . . . . 1 2 . Fabricators . | . . . . . . . . . . . . . . . . . . . . . . . . Repair Stations . | . . . . . . . . . . . . . . . . . . . . . . . . Recycling Units . | . . . . . . . . . . . . . . . . . . . . . . . . Scanalyzers . | . . . . . . . . . . . . . . . . . . . . . . . . Garrison Access . | . . . . . . . . . . . . . . . . . . . . . . . . Total Hacks 106 | . 19 13 12 . . . . 1 . 31 . 2 3 1 17 2 . . . . 2 3 . Successful 77 | . 10 4 4 . . . . 1 . 31 . . 3 1 17 2 . . . . 2 2 . Failed 29 | . 9 9 8 . . . . . . . . 2 . . . . . . . . . 1 . Catastrophic 9 | . 2 4 2 . . . . . . . . 1 . . . . . . . . . . . Database Lockouts . | . . . . . . . . . . . . . . . . . . . . . . . . Manual 45 | . 19 12 12 . . . . . . . . 2 . . . . . . . . . . . Terminals 53 | . 19 13 12 . . . . . . . . 2 . . . 2 . . . . 2 3 . Fabricators . | . . . . . . . . . . . . . . . . . . . . . . . . Repair Stations . | . . . . . . . . . . . . . . . . . . . . . . . . Recycling Units . | . . . . . . . . . . . . . . . . . . . . . . . . Scanalyzers . | . . . . . . . . . . . . . . . . . . . . . . . . Garrison Access . | . . . . . . . . . . . . . . . . . . . . . . . . Terminal Hacks 69 | . 5 3 2 . . . . 1 . 31 . . 3 1 17 2 . . . . 2 2 . Record 27 | . . . . . . . . . . 11 . . 2 . 10 2 . . . . 2 . . Part Schematic 13 | . . . . . . . . . . 13 . . . . . . . . . . . . . Robot Schematic 4 | . . . . . . . . . . 4 . . . . . . . . . . . . . Robot Analysis 2 | . 2 . . . . . . . . . . . . . . . . . . . . . . Prototype ID Bank 8 | . . . . . . . . . . 3 . . . . 5 . . . . . . . . Open Door 6 | . . . . . . . . 1 . . . . 1 1 2 . . . . . . 1 . Terminal Index 1 | . . 1 . . . . . . . . . . . . . . . . . . . . . Unreport Threat 6 | . 2 2 2 . . . . . . . . . . . . . . . . . . . . Registered Components 1 | . 1 . . . . . . . . . . . . . . . . . . . . . . Activate Exoskeleton 1 | . . . . . . . . . . . . . . . . . . . . . . 1 . Fabricator Hacks . | . . . . . . . . . . . . . . . . . . . . . . . . Repair Station Hacks . | . . . . . . . . . . . . . . . . . . . . . . . . Recycling Unit Hacks . | . . . . . . . . . . . . . . . . . . . . . . . . Scanalyzer . | . . . . . . . . . . . . . . . . . . . . . . . . Garrison Access Hacks . | . . . . . . . . . . . . . . . . . . . . . . . . Unauthorized Hacks 8 | . 5 1 2 . . . . . . . . . . . . . . . . . . . . Terminals 8 | . 5 1 2 . . . . . . . . . . . . . . . . . . . . Botnet 8 | . 5 1 2 . . . . . . . . . . . . . . . . . . . . Fabricators . | . . . . . . . . . . . . . . . . . . . . . . . . Repair Stations . | . . . . . . . . . . . . . . . . . . . . . . . . Recycling Units . | . . . . . . . . . . . . . . . . . . . . . . . . Scanalyzers . | . . . . . . . . . . . . . . . . . . . . . . . . Garrison Access . | . . . . . . . . . . . . . . . . . . . . . . . . Data Cores Recovered 2 | . 1 . 1 . . . . . . . . . . . . . . . . . . . . Used 1 | . . . 1 . . . . . . . . . . . . . . . . . . . . Hacking Detections 18 | . 7 4 3 . . . . . . . . 1 . . . 1 . . . . 1 1 . Full Trace Events 10 | . 4 3 2 . . . . . . . . 1 . . . . . . . . . . . Feedback Events . | . . . . . . . . . . . . . . . . . . . . . . . . Feedback Blocked . | . . . . . . . . . . . . . . . . . . . . . . . . Robot Schematics Acquired 6 | . . . . . . . . . . 4 . . . . . . . . . . 2 . . Robots Built . | . . . . . . . . . . . . . . . . . . . . . . . . Authchips . | . . . . . . . . . . . . . . . . . . . . . . . . Time . | . . . . . . . . . . . . . . . . . . . . . . . . Total Robot Build Rating . | . . . . . . . . . . . . . . . . . . . . . . . . Part Schematics Acquired 14 | . . . . . . . . . . 13 . . . . . . . . . . 1 . . Parts Built . | . . . . . . . . . . . . . . . . . . . . . . . . Authchips . | . . . . . . . . . . . . . . . . . . . . . . . . Time . | . . . . . . . . . . . . . . . . . . . . . . . . Total Part Build Rating . | . . . . . . . . . . . . . . . . . . . . . . . . Parts Repaired . | . . . . . . . . . . . . . . . . . . . . . . . . Time . | . . . . . . . . . . . . . . . . . . . . . . . . Parts Recycled . | . . . . . . . . . . . . . . . . . . . . . . . . Recycled Matter . | . . . . . . . . . . . . . . . . . . . . . . . . Retrieved Matter . | . . . . . . . . . . . . . . . . . . . . . . . . Retrieved Components . | . . . . . . . . . . . . . . . . . . . . . . . . Parts Scanalyzed . | . . . . . . . . . . . . . . . . . . . . . . . . Part Schematics Acquired . | . . . . . . . . . . . . . . . . . . . . . . . . Parts Damaged . | . . . . . . . . . . . . . . . . . . . . . . . . Bothacking | -11 -10 -9 -8 -7 -6 -6 -6 -6 -6 -6 -5 -5 -5 -5 -5 -4 -4 -3 -3 -2 -2 -2 -1 ------------ Run | Jun Mat Mat Mat Fac Fac Was Fac Low Low Dat Pro Fac Upp Upp War Pro Fac Res Tes Res Qua Sec Acc Used RIF Installer . | . . . . . . . . . . . . . . . . . . . . . . . . Robots Hacked . | . . . . . . . . . . . . . . . . . . . . . . . . Non-combat . | . . . . . . . . . . . . . . . . . . . . . . . . Combat . | . . . . . . . . . . . . . . . . . . . . . . . . Robot Hacks Applied . | . . . . . . . . . . . . . . . . . . . . . . . . Relay Couplers Released 11 | . . . . . . . . . . . . 2 . . . . . 2 1 1 . 3 2 Machine Destruction 11 | . . . . . . . . . . . . 2 . . . . . 2 1 1 . 3 2 Fabnet Peak Effective % . | . . . . . . . . . . . . . . . . . . . . . . . . Robots Rewired 4 | . . . . . . . . . . . . . 4 . . . . . . . . . . Allies Hacked . | . . . . . . . . . . . . . . . . . . . . . . . . Hacks Repelled . | . . . . . . . . . . . . . . . . . . . . . . . . Allies | -11 -10 -9 -8 -7 -6 -6 -6 -6 -6 -6 -5 -5 -5 -5 -5 -4 -4 -3 -3 -2 -2 -2 -1 -------- Run | Jun Mat Mat Mat Fac Fac Was Fac Low Low Dat Pro Fac Upp Upp War Pro Fac Res Tes Res Qua Sec Acc Total Allies 6 | . . . . . . 1 . . . . 1 . 4 . . . . . . . . . . Largest Group 4 | . . . . . . 1 . . . . 1 . 4 . . . . . . . . . . Highest-Rated Group 106 | . . . . . . 31 . . . . 96 . 106 . . . . . . . . . . Highest-Rated Ally 96 | . . . . . . 31 . . . . 96 . 31 . . . . . . . . . . Total Orders . | . . . . . . . . . . . . . . . . . . . . . . . . Ally Attacks 19 | . . . . . . 10 . . . . 9 . . . . . . . . . . . . Total Damage 694 | . . . . . . 148 . . . . 546 . . . . . . . . . . . . Kills 1 | . . . . . . . . . . . 1 . . . . . . . . . . . . Allies Corrupted . | . . . . . . . . . . . . . . . . . . . . . . . . Allies Melted . | . . . . . . . . . . . . . . . . . . . . . . . . Intel | -11 -10 -9 -8 -7 -6 -6 -6 -6 -6 -6 -5 -5 -5 -5 -5 -4 -4 -3 -3 -2 -2 -2 -1 ------- Run | Jun Mat Mat Mat Fac Fac Was Fac Low Low Dat Pro Fac Upp Upp War Pro Fac Res Tes Res Qua Sec Acc Robot Analysis Total 2 | . 2 . . . . . . . . . . . . . . . . . . . . . . Derelict Logs Recovered . | . . . . . . . . . . . . . . . . . . . . . . . . Drone Launches . | . . . . . . . . . . . . . . . . . . . . . . . . Drone Recoveries . | . . . . . . . . . . . . . . . . . . . . . . . . Exploration | -11 -10 -9 -8 -7 -6 -6 -6 -6 -6 -6 -5 -5 -5 -5 -5 -4 -4 -3 -3 -2 -2 -2 -1 ------------- Run | Jun Mat Mat Mat Fac Fac Was Fac Low Low Dat Pro Fac Upp Upp War Pro Fac Res Tes Res Qua Sec Acc Turns Passed 10692 | 11 1632 2712 642 1038 216 165 341 151 202 24 95 344 252 158 354 92 523 322 256 287 139 408 328 Spaces Moved 12410 | 18 827 799 690 259 226 152 531 431 602 91 366 810 421 489 789 345 1009 659 438 796 327 818 517 Core 102 | . . . . . . . . . . . . . . . . . . . . . . . 102 Treads 978 | . 419 559 . . . . . . . . . . . . . . . . . . . . . Legs . | . . . . . . . . . . . . . . . . . . . . . . . . Wheels . | . . . . . . . . . . . . . . . . . . . . . . . . Hover 425 | . . . . . . . . . . . . . . . . . . . . . . 51 374 Flight 10905 | 18 408 240 690 259 226 152 531 431 602 91 366 810 421 489 789 345 1009 659 438 796 327 767 41 Fastest Speed 17 | 37 37 29 29 26 26 26 26 26 26 26 26 24 24 25 25 25 20 17 17 21 23 24 40 Average Speed 37 | 37 107 120 31 26 26 26 31 26 26 26 26 24 25 25 25 25 21 20 19 22 25 26 45 Slowest Speed 225 | 37 160 225 99 29 26 29 96 26 26 26 26 26 95 25 25 25 25 94 22 23 95 40 200 Overloaded Moves 834 | . . . . . . . . . . . . . . . . . . 13 212 252 166 191 . Propulsion Burnouts 1 | . . . . . . . . . . . . . . . . . . . . . . 1 . Robots Hopped 27 | . 2 . 5 1 . . 2 . 1 . . 1 . . 2 . 3 . 1 2 . 7 . Cave-ins Triggered . | . . . . . . . . . . . . . . . . . . . . . . . . Exploration Rate (%) 50 | 4 98 91 49 7 4 72 21 66 75 75 60 29 64 69 92 58 32 28 65 24 53 58 18 Regions Visited 23 Branch Regions 11 Pre-discovered Areas 2 | . . . . . . . . . . 1 . . . . 1 . . . . . . . . Known Exits Taken 15 | . . . . . . . 1 1 1 1 1 1 1 1 1 1 1 1 . 1 1 1 . Unknown Exits Taken 6 | 1 1 1 1 1 . . . . . . . . . . . . . . 1 . . . . Scrap Searched . | . . . . . . . . . . . . . . . . . . . . . . . . Spaces Dug 185 | . 2 4 14 1 1 . 7 2 . . . 10 . . 4 . 8 68 21 15 9 8 11 Terrain Destroyed 2365 | . 249 252 235 21 75 . 141 2 . . . 333 229 41 69 . 368 114 49 60 52 8 67 Melee 129 | . 2 4 3 1 1 . 7 2 . . . 10 . . 4 . 8 23 21 15 9 8 11 Projectile . | . . . . . . . . . . . . . . . . . . . . . . . . AOE 2236 | . 247 248 232 20 74 . 134 . . . . 323 229 41 65 . 360 91 28 45 43 . 56 Terrain Rammed . | . . . . . . . . . . . . . . . . . . . . . . . . Walls Destroyed . | . . . . . . . . . . . . . . . . . . . . . . . . Machines Disabled . | . . . . . . . . . . . . . . . . . . . . . . . . Actions | -11 -10 -9 -8 -7 -6 -6 -6 -6 -6 -6 -5 -5 -5 -5 -5 -4 -4 -3 -3 -2 -2 -2 -1 --------- Run | Jun Mat Mat Mat Fac Fac Was Fac Low Low Dat Pro Fac Upp Upp War Pro Fac Res Tes Res Qua Sec Acc Total 17059 | 21 1388 2160 964 1115 340 243 641 467 645 90 365 899 551 519 928 348 1240 817 571 865 361 931 590 Wait 3315 | 4 429 1062 156 772 75 36 47 33 45 . . 20 61 21 124 . 120 97 79 24 7 73 30 Move 12337 | 17 822 798 680 256 226 151 526 430 599 90 365 807 420 488 785 344 1002 658 435 791 326 804 517 Hop 24 | . 2 . 4 1 . . 2 . 1 . . 1 . . 1 . 3 . 1 2 . 6 . Pick Up 13 | . . 3 1 2 . . . . . . . . 2 . 1 . . . 1 . 2 1 . Fast Attach 10 | . . 1 . 1 . 1 . . . . . . . . . . 2 1 . . 3 1 . Attach 56 | . 1 13 3 2 3 4 2 2 . . . . 2 . . . 6 3 1 1 2 2 9 Detach 45 | . 3 9 2 1 2 2 2 . . . . 1 1 . . . 8 3 2 1 . . 8 Swap 77 | . 8 21 9 6 7 3 3 . . . . 6 2 5 2 . 2 3 . . . . . Drop 32 | . 1 15 2 3 1 . . . . . . 1 2 1 1 . 1 1 2 . 1 . . Fire 618 | . 75 220 79 48 15 46 21 . . . . 23 12 2 5 . 48 6 3 9 3 . 3 Melee 475 | . 47 18 28 12 11 . 38 2 . . . 40 5 2 9 4 48 45 47 37 17 44 21 Ram 2 | . . . . . . . . . . . . . . . . . . . . . . . 2 Kick . | . . . . . . . . . . . . . . . . . . . . . . . . Crush . | . . . . . . . . . . . . . . . . . . . . . . . . Escape Stasis 11 | . . . . 11 . . . . . . . . . . . . . . . . . . . Rewire 44 | . . . . . . . . . . . . . 44 . . . . . . . . . . Trap . | . . . . . . . . . . . . . . . . . . . . . . . . Miscellaneous . | . . . . . . . . . . . . . . . . . . . . . . . . Route ------- -11/Junkyard -10/Materials (discovered 4 exits: *Mat x3 / [*Min]) -9/Materials (discovered 3 exits: *Mat x2 / [*Min]) -8/Materials -7/Factory (discovered 2 exits: [*Fac] / [*Sto]) -6/Factory -6/Waste -6/Factory -6/Lower Caves -6/Lower Caves (discovered 2 exits: *Fac / *Dat) -6/Data Miner -5/Proximity Caves -5/Factory (discovered 2 exits: *Fac / *Upp) -5/Upper Caves -5/Upper Caves -5/Warlord -4/Proximity Caves -4/Factory -3/Research -3/Testing -2/Research (discovered 3 exits: *Acc x2 / *Qua) -2/Quarantine -2/Section 7 -1/Access History --------- Turn | Location | Event 3 | -11/Junkyard | Discovered new exit (range 15) 12 | -11/Junkyard | Entered Materials 70 | -10/Materials | Discovered new exit (range 9) 307 | -10/Materials | Build established: Mutant 326 | -10/Materials | Discovered new exit (range 15) 577 | -10/Materials | Discovered new exit (range 6) 812 | -10/Materials | Discovered new exit (range 6) 1079 | -10/Materials | Core integrity fell below 50% 1644 | -10/Materials | Entered another Materials area 1644 | -9/Materials | Evolved 2 slots: Propulsion x1, Utility x1 2177 | -9/Materials | Build established: Derelict-Mutant 2444 | -9/Materials | First assault squad dispatched 3216 | -9/Materials | Discovered new exit (range 8) 3843 | -9/Materials | Discovered new exit (range 9) 4070 | -9/Materials | Build established: Mutant 4151 | -9/Materials | Core integrity fell below 50% 4187 | -9/Materials | Destroyed 8 combat bots 4196 | -9/Materials | Lost 7 parts (2p2n2u1w) 4215 | -9/Materials | Sterilization system engaged 4215 | -9/Materials | Non-combat units ordered to evacuate 4315 | -9/Materials | Combat units ordered to evacuate 4348 | -9/Materials | Discovered new exit (range 16) 4356 | -9/Materials | Entered another Materials area 4356 | -8/Materials | Evolved 2 slots: Utility x2 4418 | -8/Materials | Discovered new exit (range 16) 4458 | -8/Materials | Destroyed 14 combat bots 4569 | -8/Materials | Lost 3 parts (1n1u1w) 4797 | -8/Materials | Build established: Sprinter 4970 | -8/Materials | High security lockdown imminent 4998 | -8/Materials | Entered Factory 4998 | -7/Factory | Evolved 2 slots: Propulsion x1, Utility x1 5005 | -7/Factory | Discovered new exit (range 9) 5012 | -7/Factory | Discovered new exit (range 5) 5398 | -7/Factory | First assault squad dispatched 6036 | -7/Factory | Entered another Factory area 6036 | -6/Factory | Evolved 2 slots: Weapon x2 6050 | -6/Factory | Destroyed 8 combat bots 6070 | -6/Factory | Discovered new exit (range 6) 6123 | -6/Factory | Identified exit to Lower Caves 6252 | -6/Factory | Manually triggered Chute Trap 6252 | -6/Factory | Sucked down chute 6252 | -6/Factory | Entered Waste 6253 | -6/Waste | Met a frightened Derelict 6259 | -6/Waste | Spotted C-40 Crusher 6275 | -6/Waste | Crushed by Compactor (1 part destroyed, 1 dropped) 6277 | -6/Waste | Destroyed C-40 Crusher 6306 | -6/Waste | Lost 3 parts (1p1n1w) 6306 | -6/Waste | Spotted C-40 Crusher 6312 | -6/Waste | Spotted C-40 Crusher 6350 | -6/Waste | Spotted C-40 Crusher 6354 | -6/Waste | Destroyed C-40 Crusher 6372 | -6/Waste | Destroyed C-40 Crusher 6399 | -6/Waste | Destroyed C-40 Crusher 6406 | -6/Waste | Spotted C-40 Crusher 6413 | -6/Waste | Discovered new exit (range 15) 6414 | -6/Waste | Spotted C-40 Crusher 6417 | -6/Waste | Identified exit to Factory 6417 | -6/Waste | Entered Factory 6712 | -6/Factory | Lost 3 parts (1p2u) 6740 | -6/Factory | Discovered exit to Lower Caves (range 8) 6758 | -6/Factory | Entered Lower Caves 6905 | -6/Lower Caves | Discovered new exit (range 12) 6909 | -6/Lower Caves | Identified exit to Lower Caves 6909 | -6/Lower Caves | Entered another Lower Caves area 6918 | -6/Lower Caves | Encountered a Warlord checkpoint 6979 | -6/Lower Caves | Discovered new exit (range 9) 7109 | -6/Lower Caves | Discovered new exit (range 9) 7111 | -6/Lower Caves | Identified exit to Data Miner 7111 | -6/Lower Caves | Entered Data Miner 7111 | -6/Data Miner | Discovered new exit (range 6) 7116 | -6/Data Miner | Met Data Miner 7122 | -6/Data Miner | Learned location of Section 7 (-2) 7122 | -6/Data Miner | Acquired the access code to Warlord's prototype stash 7127 | -6/Data Miner | Received God Mode back door access code from Data Miner 7135 | -6/Data Miner | Identified exit to Proximity Caves 7135 | -6/Data Miner | Entered Proximity Caves 7160 | -5/Proximity Caves | Escorted by Enhanced Grunt 7227 | -5/Proximity Caves | Discovered new exit (range 11) 7230 | -5/Proximity Caves | Identified exit to Factory 7230 | -5/Proximity Caves | Entered Factory 7230 | -5/Factory | Evolved 2 slots: Propulsion x1, Utility x1 7251 | -5/Factory | Incoming assault squad redirected 7288 | -5/Factory | Discovered new exit (range 16) 7315 | -5/Factory | Discovered new exit (range 15) 7323 | -5/Factory | Identified exit to Factory 7487 | -5/Factory | High security lockdown imminent 7554 | -5/Factory | Identified exit to Upper Caves 7567 | -5/Factory | High security lockdown engaged 7574 | -5/Factory | Entered Upper Caves 7595 | -5/Upper Caves | Attacked by a delusional Derelict stockpiling Unaware 7646 | -5/Upper Caves | Found Exp. Actuator Array 7696 | -5/Upper Caves | Learned location of 1 exit from Factory 7763 | -5/Upper Caves | Destroyed 10 combat bots 7780 | -5/Upper Caves | Discovered new exit (range 11) 7783 | -5/Upper Caves | Identified exit to Upper Caves 7826 | -5/Upper Caves | Entered another Upper Caves area 7975 | -5/Upper Caves | Discovered new exit (range 13) 7978 | -5/Upper Caves | Identified exit to Warlord 7979 | -5/Upper Caves | Spotted B-75 Beast 7984 | -5/Upper Caves | Entered Warlord 8006 | -5/Warlord | Learned Factory garrison access intel 8006 | -5/Warlord | Learned Armory fabricator intel 8006 | -5/Warlord | Learned Research terminal intel 8006 | -5/Warlord | Learned Research scanalyzer intel 8099 | -5/Warlord | Visited the Vortex Lab 8121 | -5/Warlord | Warlord's base attacked by MAIN.C 8125 | -5/Warlord | Met Warlord 8331 | -5/Warlord | Opened side exit 8336 | -5/Warlord | Discovered new exit (range 10) 8338 | -5/Warlord | Identified exit to Proximity Caves 8338 | -5/Warlord | Entered Proximity Caves 8378 | -4/Proximity Caves | Spotted B-86 Titan 8400 | -4/Proximity Caves | Spotter reported a threat 8428 | -4/Proximity Caves | Discovered exit to Factory (range 8) 8430 | -4/Proximity Caves | Entered Factory 8430 | -4/Factory | Evolved 2 slots: Propulsion x1, Utility x1 8431 | -4/Factory | Identified exit to Research 8432 | -4/Factory | Loaded intel: 4 garrison access locations 8617 | -4/Factory | Destroyed 16 combat bots 8662 | -4/Factory | Found Fusion Bomb Launcher 8680 | -4/Factory | First assault squad dispatched 8703 | -4/Factory | Incoming assault squad redirected 8707 | -4/Factory | Incoming assault squad redirected 8844 | -4/Factory | Incoming assault squad redirected 8849 | -4/Factory | Incoming assault squad redirected 8947 | -4/Factory | Incoming assault squad redirected 8948 | -4/Factory | Destroyed 7 combat bots 8953 | -4/Factory | Entered Research 8953 | -3/Research | Evolved 2 slots: Power x1, Utility x1 8954 | -3/Research | Loaded intel: 23 terminal locations 8955 | -3/Research | Loaded intel: 6 scanalyzer locations 9203 | -3/Research | First assault squad dispatched 9203 | -3/Research | Spotted B-86 Titan 9219 | -3/Research | Incoming assault squad redirected 9224 | -3/Research | Incoming assault squad redirected 9249 | -3/Research | Found Nanosword 9270 | -3/Research | Discovered new exit (range 9) 9275 | -3/Research | Identified exit to Testing 9275 | -3/Research | Entered Testing 9349 | -3/Testing | Spotted Striker 9409 | -3/Testing | Spotted Striker 9463 | -3/Testing | Build established: Scout 9501 | -3/Testing | Spotted PD-6K74E69PA4 9519 | -3/Testing | Discovered new exit (range 11) 9525 | -3/Testing | First assault squad dispatched 9531 | -3/Testing | Entered Research 9531 | -2/Research | Warlord forces began assault on 0b10 9531 | -2/Research | Evolved 2 slots: Power x1, Utility x1 9561 | -2/Research | Lost 6 parts (3n3u) 9570 | -2/Research | Met up with Warlord 9641 | -2/Research | Research machine network offline 9671 | -2/Research | Discovered new exit (range 14) 9674 | -2/Research | Discovered new exit (range 9) 9679 | -2/Research | Discovered new exit (range 24) 9767 | -2/Research | High security lockdown imminent 9795 | -2/Research | Spotted Striker 9804 | -2/Research | Identified exit to Access 9817 | -2/Research | Identified exit to Quarantine 9818 | -2/Research | Entered Quarantine 9882 | -2/Quarantine | P-80 Master assimilated allied 7O-MG4(L) 9883 | -2/Quarantine | Spotted 7O-MG4(L) 9927 | -2/Quarantine | Cryocooling Duct disabled 9935 | -2/Quarantine | Lost 5 parts (2n3u) 9938 | -2/Quarantine | Spotted Fortress 9942 | -2/Quarantine | Ambient heat levels rising (+20) 9942 | -2/Quarantine | Non-combat units ordered to evacuate 9956 | -2/Quarantine | Discovered new exit (range 6) 9957 | -2/Quarantine | Identified exit to Section 7 9957 | -2/Quarantine | Entered Section 7 10066 | -2/Section 7 | Incoming assault squad redirected 10089 | -2/Section 7 | Spotted Alpha 7 10098 | -2/Section 7 | Spotted B-90 Cyclops 10152 | -2/Section 7 | Spotted Executioner 10181 | -2/Section 7 | Spotted Executioner 10193 | -2/Section 7 | Spotted B-99 Colossus 10296 | -2/Section 7 | Spotted Executioner 10300 | -2/Section 7 | Spotted Alpha 7 10362 | -2/Section 7 | Core integrity fell below 50% 10362 | -2/Section 7 | Discovered exit to Access (range 11) 10365 | -2/Section 7 | Entered Access 10365 | -1/Access | Evolved 2 slots: Utility x2 10396 | -1/Access | Lost 7 parts (2p2n1u2w) 10615 | -1/Access | First assault squad dispatched 10629 | -1/Access | Spotted B-99 Colossus 10634 | -1/Access | Build established: Mutant 10650 | -1/Access | Core integrity fell below 50% 10670 | -1/Access | Core integrity fell below 20% 10680 | -1/Access | Lost 8 parts (1p2n4u1w) 10693 | -1/Access | Destroyed by S-43 Plague with Heavy Machine Gun Last Messages --------------- 10615_ ALERT: Significant disruption in Zone 3G, assault force dispatched. 10630_ Anti-Orbital Battery disabled. 10630_ Slug penetrates Anti-Orbital Battery. 10630_ Biomechanical Wings destroyed. 10630_ Mak. Sensor Array destroyed. 10633_ Adv. Signal Interpreter destroyed. 10633_ Adv. Terrain Scan Processor destroyed. 10633_ Critical hit (Blast). 10644_ Point Defense Array destroyed. 10644_ Critical hit (Blast). 10649_ Fusion Bomb Launcher destroyed. 10649_ Knocked back. 10654_ P-80 Master resets S-43 Plague, system corruption cleaned. 10669_ Penetrated by Slug. 10679_ System corrupted: Matter fused (-5). 10686_ Destroyed Xenon Bombardment Thruster. 10686_ S-43 Plague system corrupted by crushing effect. 10686_ P-80 Master resets S-43 Plague, system corruption cleaned. 10691_ Mak. Hammer destroyed. 10692_ Slammed into S-43 Plague. Map ----- +----------------------------------------------------+ | | | | | | | | | | | | | | | | | | | | | ??????????????????????????????????????? | | ??????????????????????????????????????? | | ??????????????????????????????????????? | | ?????#######????##################????? | | ?????# #????+ #????? | | ###### #????# #????? | | +????# #????? | | ###### #????# #????? | | #????# #????# #????? | | #????## ####### #????? | | #?????# #????? | | #?????# Y #????? | | ??????# ps #????? | | ??????# sp #????? | | ??????# s s #????? | | ??????######## ####@###### #????? | | ?????????????# # #??????? | | ?????????????# # #??????? | | ?????????????# # #??????? | | ?????????????# # s +????? | | ???????????? ########### #????? | | ??????????? ???????????#????? | | ??????????? ???????????????? | | ???????????? ???????????????? | | ???????????? ????????????????? | | ????????????? ??????????????????? | | ??????????????????????????????????????? | | ??????????????????????????????????????? | | ??????????????????????????????????????? | | ??????????????????????????????????????? | | ??????????????????????????????????????? | | ??????????????????????????????????????? | | ??????????????????????????????????????? | | ??????????????????????????????????????? | | ??????????????????????????????????????? | | ??????????????????????????????????????? | | ??????????????????????????????????????? | | ??????????????????????????????????????? | | ??????????????????????????????????????? | | ??????????????????????????????????????? | +----------------------------------------------------+ Best States ------------- Heat Dissipation 84 Energy Generation 49 Energy Capacity 310 Matter Stores 300 Matter Capacity 300 Sight Range 16 Robot Scan Range 19 Terrain Scan Range 24 Terrain Scan Density 210 Power Amplification 30 Additional Mass Support 9 Armor Coverage 600 Resistance: KI 20 Propulsion Shielding 66 Weapon Cycling 20 Melee Speed Boost 50 Phase Shifting 10 Evasion (%) 76 Targeting Accuracy 20 Melee Accuracy 24 Core Analysis 6 Armor Integrity Analysis 30 Recoil Reduction 6 Kinecelleration 40 Item Schematics ----------------- Combat Drone Bay | -6/Data Miner | Free Lgt. Regenerative Plating | -6/Data Miner | Free Exp. Cesium-ion Thruster | -6/Data Miner | Free Imp. Matter Compressor | -6/Data Miner | Free Cld. Plasma Rifle | -6/Data Miner | Free Imp. Linear Gravjet | -6/Data Miner | Free Quantum Capacitor | -6/Data Miner | Free Adv. Datajack | -6/Data Miner | Free Point Defense System | -6/Data Miner | Free Hvy. Disruptor Cannon | -6/Data Miner | Free HERF Cannon | -6/Data Miner | Free Adv. Recalibrator | -6/Data Miner | Free Adv. Weapon Cycler | -6/Data Miner | Free Energy Mantle | -2/Quarantine | Archive Robot Schematics ------------------ B-60 Warrior | -6/Data Miner | Free A-15 Conveyor | -6/Data Miner | Free R-10 Processor | -6/Data Miner | Free M-30 Cleanser | -6/Data Miner | Free A-27 Freighter | -2/Quarantine | Archive C-55 Analyst | -2/Quarantine | Archive Fabricated ------------ Nothing Alien Tech Used ----------------- None Achievements -------------- All-out Warlord Challenges ------------ None Cogshop Purchases (116) ------------------------- Imp. Flight Unit (1049) Imp. Flight Unit (1049) Imp. Flight Unit (1049) Cooling System (699) Flail (629) Spread Laser (661) Spread Laser (661) Lgt. Ion Engine (491) Lgt. Ion Engine (591) Spk. Treads (738) Spk. Treads (738) Cooling System (830) Med. Armor Plating (257) Cooling System (508) Cooling System (508) Weight Redist. System (508) Lgt. Armor Plating (586) Propulsion Shielding (586) Riot Gun (742) Riot Gun (742) Lgt. Nuclear Core (785) Adv. Treads (733) Hvy. Armor Plating (974) Riot Gun (871) Hvy. Armor Plating (1272) CPS Tube (772) Riot Gun (1359) Imp. VTOL Module (600) Cesium-ion Thruster (600) Imp. VTOL Module (600) Imp. VTOL Module (600) Imp. VTOL Module (600) Imp. VTOL Module (600) Imp. VTOL Module (600) Imp. VTOL Module (600) Adv. Treads (917) Flak Cannon (1158) EM Pulse Cannon (676) Nuclear Core (594) Lrn. Tractor Beam (831) Lgt. Deuterium Engine (635) Lgt. Deuterium Engine (635) Hvy. Rocket Launcher (843) Adv. Weight Redist. System (799) Hvy. Deuterium Engine (818) Imp. Propulsion Shielding (1131) Imp. Propulsion Shielding (1131) Mic. Nuclear Core (773) Mak. Shrapnel Gun (598) Mak. Shrapnel Gun (719) Lrn. Tractor Beam (833) Armor Integrity Analyzer (633) Core Analyzer (633) Mak. Shrapnel Gun (771) Mak. Shrapnel Gun (771) Recoil Nullifier (Loot Box) Focal Shield (Loot Box) Lrn. Tractor Beam (779) Adv. Targeting Computer (781) Weapon Cycler (831) Adv. Signal Interpreter (977) Adv. Signal Interpreter (977) Imp. Kinecellerator (1188) Imp. Weapon Cycler (1188) Mak. Hammer (674) Lrn. Proton Cannon (1148) Adv. Melee Analysis Suite (1243) Adv. Melee Analysis Suite (1243) Adv. Melee Analysis Suite (1243) Lgt. Angular Momentum Engine (965) Mic. Nuclear Core (593) Mic. Nuclear Core (593) Microactuators (862) Tesla Rifle (1149) Weapon Mount (1020) Lrn. Terrain Scanner (1224) Biomechanical Wings (1297) Imp. Propulsion Shielding (775) Micro-nuke Launcher (1584) Impulse Thruster (1622) Cld. Cesium-ion Thruster (Loot Box) Exp. Actuator Array (Loot Box) Point Defense Array (Loot Box) Adv. Cryofiber Web (Loot Box) Hpw. Shock Rifle (Loot Box) Nanoactuators (1333) Lrn. Tractor Beam (1032) Lgt. Antimatter Reactor (1207) Launcher Loader (1120) Fusion Bomb Launcher (2007) Adv. Power Amplifier (1344) Lrn. Sensor Array (1344) Fusion Bomb Launcher (2007) Diametric Drive (1922) Exp. Cooling System (1780) Com. Particle Reactor (1515) Nanosword (3547) Imp. Propulsion Shielding (607) Mic. Antimatter Reactor (1406) Adv. Terrain Scan Processor (771) Com. HERF Cannon (1145) Imp. Phase Shifter (1726) Cld. Field Propulsion Drive (1698) Cld. Field Propulsion Drive (2125) Cld. Linear Gravjet (1607) Cld. Nuclear Pulse Thruster (1790) Adv. Signal Interpreter (1019) Imp. Propulsion Shielding (685) Imp. Propulsion Shielding (685) Nuclear Pulse Array (2032) Exp. Q-thruster (2359) Thunder Hammer (1774) Mak. Power Source (703) Mak. Hammer (907) Mak. Sensor Array (1167) Mak. Power Source (752) Game ------ Seed BottomlessCoolingEdition Manual? 0 Play Time 03:46:48 Cumulative 22.4 hours Start 2023.11.11 @ 15:17:04 End 2023.11.11 @ 20:14:47 Sessions 1 Manual Loads 0 Difficulty Rogue Special Mode AFD2019/Pay2Buy Game No. 9 Rogue 9 Adventurer 0 Explorer 0 Win Type - Total 0 Types 0/0/0/0/0/0/0/0/0 Lore% 20 Gallery% 32 Achievement% 68 Wizard Run 0 Options --------- ASCII 0 Keyboard 0 Movement Mouse Keybinds 0 Fullscreen 2 Font 36/X11 Map View 76x50 Tactical HUD 1 Map Filters NONE Filters NONE Steam 1 RUN: 75d5431b-2377-47c1-ba0f-0b8a9c51c82f